{"text_format":"1","workbook":"xlsx","n_sheets":7,"sheets":["！記入注意事項！","！見積書表紙記入例！","！見積内訳書記入例！","見積書表紙","見積内訳書","プルダウン用","内訳元"],"not_rendered":{"charts":0,"images":3,"macros":1,"external_links":0,"defined_names":5,"comments":0,"pivot_tables":0},"unopened":[],"bounds":{"document_bytes":16777216,"sheet_cells":100000,"rows_first":2000,"rows_last":500,"rows_between":2000,"halvings":0,"cell_chars":16384,"cell_head_chars":4096},"cells_cut":0,"cells_raw":0,"read":"whole","date_system":"1900"}

{"sheet":"！記入注意事項！","index":0,"n_rows":24,"n_cols":2,"rows_kept":24,"cut":false,"hidden":false,"merged":[]}
[]
[]
[]
[]
[]
[]
[]
[]
[]
[]
[]
[]
[]
[]
[]
[]
[]
[null,"～マクロを有効にする方法～"]
[]
[null,"□注文書のファイルを開きます。"]
[null,"□セキュリティの警告“マクロが無効にされました”"]
[null,"  と警告が上部黄色のメッセージバーに表示されます。"]
[null,"□使用する場合は（信頼できるファイルのみ）「コンテンツの有効化」をクリックします。"]
[null,"□キャンセルをすると使用できなくなります。"]

{"sheet":"！見積書表紙記入例！","index":1,"n_rows":35,"n_cols":79,"rows_kept":35,"cut":false,"hidden":false,"merged":[[13,31,15,36],[10,66,10,68],[10,69,10,70],[10,71,10,72],[0,0,2,30],[0,31,2,48],[0,49,2,79],[3,0,4,26],[3,27,4,66],[3,67,3,79],[4,67,4,70],[4,71,4,79],[9,37,9,38],[9,39,9,46],[9,47,9,65],[9,31,12,36],[10,0,12,5],[10,6,12,26],[10,27,12,30],[10,73,10,77],[10,78,10,79],[11,66,12,70],[11,71,12,79],[13,66,13,79],[14,66,15,79],[13,39,15,64],[13,0,15,5],[13,6,15,26],[13,27,15,30],[5,0,5,79],[6,0,6,36],[6,37,6,65],[6,66,6,79],[7,0,8,36],[7,37,8,65],[7,66,9,79],[9,0,9,5],[9,6,9,12],[9,13,9,30],[10,37,18,38],[10,39,11,65],[12,39,12,42],[12,43,12,51],[12,52,12,55],[12,56,12,64],[16,0,18,5],[12,65,15,65],[16,6,18,26],[16,27,18,30],[16,66,18,69],[16,70,18,74],[16,75,18,79],[19,0,19,79],[20,0,20,79],[21,0,21,5],[21,6,21,23],[21,24,21,42],[21,43,21,48],[21,49,21,52],[21,53,21,65],[21,66,21,79],[16,63,18,65],[16,31,18,36],[16,39,18,62],[22,64,22,65],[22,66,22,79],[23,0,23,5],[23,6,23,23],[23,24,23,42],[23,43,23,48],[23,49,23,52],[23,53,23,63],[23,64,23,65],[23,66,23,79],[22,0,22,5],[22,6,22,23],[22,24,22,42],[22,43,22,48],[22,49,22,52],[22,53,22,63],[24,64,24,65],[24,66,24,79],[25,0,25,5],[25,6,25,23],[25,24,25,42],[25,43,25,48],[25,49,25,52],[25,53,25,63],[25,64,25,65],[25,66,25,79],[24,0,24,5],[24,6,24,23],[24,24,24,42],[24,43,24,48],[24,49,24,52],[24,53,24,63],[28,0,28,42],[28,43,28,52],[28,53,28,63],[28,64,28,65],[28,66,28,79],[29,0,29,79],[26,64,26,65],[26,66,26,79],[27,0,27,5],[27,6,27,23],[27,24,27,42],[27,43,27,48],[27,49,27,52],[27,53,27,63],[27,64,27,65],[27,66,27,79],[26,0,26,5],[26,6,26,23],[26,24,26,42],[26,43,26,48],[26,49,26,52],[26,53,26,63],[36,0,36,79],[34,0,35,5],[34,6,35,18],[34,19,35,23],[34,24,35,36],[34,37,34,79],[35,37,35,79],[30,0,30,36],[31,0,32,36],[31,37,31,79],[32,37,32,79],[33,0,33,36],[33,37,33,79],[30,37,30,48],[30,49,30,60],[30,61,30,79]]}
[null,null,null,null,null,null,null,null,null,null,null,null,null,null,null,null,null,null,null,null,null,null,null,null,null,null,null,null,null,null,null," 見　　積　　書 "]
[]
[]
["古久根建設株式会社　御中"]
[null,null,null,null,null,null,null,null,null,null,null,null,null,null,null,null,null,null,null,null,null,null,null,null,null,null,null,null,null,null,null,null,null,null,null,null,null,null,null,null,null,null,null,null,null,null,null,null,null,null,null,null,null,null,null,null,null,null,null,null,null,null,null,null,null,null,null,"提出日",null,null,null,"2020-07-01"]
[]
["　工　事　名",null,null,null,null,null,null,null,null,null,null,null,null,null,null,null,null,null,null,null,null,null,null,null,null,null,null,null,null,null,null,null,null,null,null,null,null,"　取　引　先　コ　ー　ド",null,null,null,null,null,null,null,null,null,null,null,null,null,null,null,null,null,null,null,null,null,null,null,null,null,null,null,null,"建設業許可番号年月日"]
["Ｋ・Ｋ新築工事",null,null,null,null,null,null,null,null,null,null,null,null,null,null,null,null,null,null,null,null,null,null,null,null,null,null,null,null,null,null,null,null,null,null,null,null,"012345"]
[]
["消費税",null,null,null,null,null,0.1,null,null,null,null,null,null,null,null,null,null,null,null,null,null,null,null,null,null,null,null,null,null,null,null,"住　所",null,null,null,null,null,"〒",null,"111-2222"]
["見積金額\n（税込）",null,null,null,null,null,{"$f":"IF(G14=\"単価見積\",G14,G14+G17)","v":385000},null,null,null,null,null,null,null,null,null,null,null,null,null,null,null,null,null,null,null,null,"円",null,null,null,null,null,null,null,null,null,null,null,"東京都文京区〇〇0-0-0",null,null,null,null,null,null,null,null,null,null,null,null,null,null,null,null,null,null,null,null,null,null,null,null,null,null,"般－",null,null,"26",null,"第",null,"123456",null,null,null,null,"号"]
[null,null,null,null,null,null,null,null,null,null,null,null,null,null,null,null,null,null,null,null,null,null,null,null,null,null,null,null,null,null,null,null,null,null,null,null,null,null,null,null,null,null,null,null,null,null,null,null,null,null,null,null,null,null,null,null,null,null,null,null,null,null,null,null,null,null," 許可年月日",null,null,null,null,"2020-01-01"]
[null,null,null,null,null,null,null,null,null,null,null,null,null,null,null,null,null,null,null,null,null,null,null,null,null,null,null,null,null,null,null,null,null,null,null,null,null,null,null,"ＴＥＬ・・",null,null,null,"01-2345-6789",null,null,null,null,null,null,null,null,"ＦＡＸ・・"]
["見積金額\n（税抜）",null,null,null,null,null,{"$f":"(BB29)","v":350000},null,null,null,null,null,null,null,null,null,null,null,null,null,null,null,null,null,null,null,null,"円",null,null,null,"会社名",null,null,null,null,null,null,null,"〇〇株式会社",null,null,null,null,null,null,null,null,null,null,null,null,null,null,null,null,null,null,null,null,null,null,null,null,null,null,"　見積有効期限"]
[]
[]
["消費税等",null,null,null,null,null,{"$f":"IF(G14=\"単価見積\",\"\",G14*G10)","v":35000},null,null,null,null,null,null,null,null,null,null,null,null,null,null,null,null,null,null,null,null,"円",null,null,null,"代表者名",null,null,null,null,null,null,null,"役職　　　〇〇　××",null,null,null,null,null,null,null,null,null,null,null,null,null,null,null,null,null,null,null,null,null,null,null,"印",null,null,"担当者"]
[]
[]
[]
["　　　　　　見　積　総　括　表"]
["費目コード",null,null,null,null,null,"工　事　費　目",null,null,null,null,null,null,null,null,null,null,null,null,null,null,null,null,null,"工　事　細　目",null,null,null,null,null,null,null,null,null,null,null,null,null,null,null,null,null,null,"数　量",null,null,null,null,null,"単位",null,null,null,"金　額",null,null,null,null,null,null,null,null,null,null,null,null,"備　考"]
["3050",null,null,null,null,null,"金属工事",null,null,null,null,null,null,null,null,null,null,null,null,null,null,null,null,null,"アルミ見切り",null,null,null,null,null,null,null,null,null,null,null,null,null,null,null,null,null,null,"1",null,null,null,null,null,"式",null,null,null,100000,null,null,null,null,null,null,null,null,null,null,"円"]
["3130",null,null,null,null,null,"内装工事",null,null,null,null,null,null,null,null,null,null,null,null,null,null,null,null,null,"ボード・ＧＬ",null,null,null,null,null,null,null,null,null,null,null,null,null,null,null,null,null,null,"1",null,null,null,null,null,"式",null,null,null,200000,null,null,null,null,null,null,null,null,null,null,"円"]
["3150",null,null,null,null,null,"雑工事",null,null,null,null,null,null,null,null,null,null,null,null,null,null,null,null,null,"点検口",null,null,null,null,null,null,null,null,null,null,null,null,null,null,null,null,null,null,"1",null,null,null,null,null,"式",null,null,null,50000,null,null,null,null,null,null,null,null,null,null,"円"]
[null,null,null,null,null,null,null,null,null,null,null,null,null,null,null,null,null,null,null,null,null,null,null,null,null,null,null,null,null,null,null,null,null,null,null,null,null,null,null,null,null,null,null,null,null,null,null,null,null,null,null,null,null,null,null,null,null,null,null,null,null,null,null,null,"円"]
[null,null,null,null,null,null,null,null,null,null,null,null,null,null,null,null,null,null,null,null,null,null,null,null,null,null,null,null,null,null,null,null,null,null,null,null,null,null,null,null,null,null,null,null,null,null,null,null,null,null,null,null,null,null,null,null,null,null,null,null,null,null,null,null,"円"]
[null,null,null,null,null,null,null,null,null,null,null,null,null,null,null,null,null,null,null,null,null,null,null,null,null,null,null,null,null,null,null,null,null,null,null,null,null,null,null,null,null,null,null,null,null,null,null,null,null,null,null,null,null,null,null,null,null,null,null,null,null,null,null,null,"円"]
["※工事費目は例「内装工事」等。工事細目は例「床・クロス工事」等、左記の内容については見積依頼書を参照して下さい。",null,null,null,null,null,null,null,null,null,null,null,null,null,null,null,null,null,null,null,null,null,null,null,null,null,null,null,null,null,null,null,null,null,null,null,null,null,null,null,null,null,null,"見積金額合計",null,null,null,null,null,null,null,null,null,{"$f":"IF(BB23=\"単価見積\",BB23,SUM(BB23:BL28))","v":350000},null,null,null,null,null,null,null,null,null,null,"円"]
[]
["　工事（納入）場所",null,null,null,null,null,null,null,null,null,null,null,null,null,null,null,null,null,null,null,null,null,null,null,null,null,null,null,null,null,null,null,null,null,null,null,null,"見 積 条 件 等",null,null,null,null,null,null,null,null,null,null,null,"工 事 範 囲",null,null,null,null,null,null,null,null,null,null,null,"※選択してください"]
["東京都文京区〇〇1丁目2番3号",null,null,null,null,null,null,null,null,null,null,null,null,null,null,null,null,null,null,null,null,null,null,null,null,null,null,null,null,null,null,null,null,null,null,null,null,"1.貴社の見積条件による。"]
[]
["　工種工期（納期）"]
["着工日",null,null,null,null,null,"2020-07-01",null,null,null,null,null,null,null,null,null,null,null,null,"完成日",null,null,null,null,"2021-07-01"]

{"sheet":"！見積内訳書記入例！","index":2,"n_rows":43,"n_cols":9,"rows_kept":43,"cut":false,"hidden":false,"merged":[[0,0,1,8]]}
["　見　　積　　内　　訳　　書　"]
[]
["費目コード","部　位","名　称","仕　様\n（品質・形状・寸法等）","数量","単位","単　価","金　額","備　考\n（メーカー名）"]
["3050",null,"金属工事",null,null,null,null,{"$f":"IF(AND(E4=\"\",G4=\"\"),\"\",ROUNDDOWN(E4*G4,0))","v":""}]
[null,null,null,null,null,null,null,{"$f":"IF(AND(E5=\"\",G5=\"\"),\"\",ROUNDDOWN(E5*G5,0))","v":""}]
[null,"壁","アルミ見切","アルミ　コの字",20,"m",5000,100000]
[null,null,null,null,null,null,null,""]
[null,null,"計",null,null,null,null,{"$f":"(H6)","v":100000}]
[null,null,null,null,null,null,null,""]
[null,null,null,null,null,null,null,""]
["3130",null,"内装工事",null,null,null,null,""]
[null,null,null,null,null,null,null,""]
[null,"壁","プラスターボード　１２．５","LGS下地",20,"㎡",1000,20000]
[null,"柱","プラスターボード　１２．５","LGS下地",20,"㎡",1000,20000]
[null,"天井","プラスターボード　９．５","LGS下地",100,"㎡",800,80000]
[null,null,null,null,null,null,null,""]
[null,"壁","プラスターボード　１２．５","GL工法",40,"㎡",1400,56000]
[null,"梁型","プラスターボード　９．５","GL工法",16,"㎡",1500,24000]
[null,null,null,null,null,null,null,""]
[null,null,"計",null,null,null,null,{"$f":"(H13+H14+H15+H17+H18)","v":200000}]
[null,null,null,null,null,null,null,""]
[null,null,null,null,null,null,null,""]
[null,null,null,null,null,null,null,""]
["3150",null,"雑工事",null,null,null,null,{"$f":"IF(AND(E24=\"\",G24=\"\"),\"\",ROUNDDOWN(E24*G24,0))","v":""}]
[null,null,null,null,null,null,null,{"$f":"IF(AND(E25=\"\",G25=\"\"),\"\",ROUNDDOWN(E25*G25,0))","v":""}]
[null,"壁","点検口","２００×２００　塩ビ",5,"ヶ",3000,15000]
[null,"天井","点検口","４５０×４５０　アルミ",5,"ヶ",7000,35000]
[null,null,null,null,null,null,null,""]
[null,null,"計",null,null,null,null,{"$f":"(H26+H27)","v":50000}]
[null,null,null,null,null,null,null,""]
[null,null,"総　計",null,null,null,null,{"$f":"(H8+H20+H29)","v":350000}]
[null,null,null,null,null,null,null,""]
[null,null,null,null,null,null,null,""]
[null,null,null,null,null,null,null,""]
[null,null,null,null,null,null,null,""]
[null,null,null,null,null,null,null,""]
[null,null,null,null,null,null,null,""]
[null,null,null,null,null,null,null,""]
[null,null,null,null,null,null,null,""]
[null,null,null,null,null,null,null,""]
[null,null,null,null,null,null,null,""]
[null,null,null,null,null,null,null,""]
[null,null,null,null,null,null,null,""]

{"sheet":"見積書表紙","index":3,"n_rows":35,"n_cols":79,"rows_kept":35,"cut":false,"hidden":false,"merged":[[0,0,2,30],[0,31,2,48],[0,49,2,79],[3,0,4,26],[3,27,4,66],[3,67,3,79],[4,67,4,70],[4,71,4,79],[10,0,12,5],[10,6,12,26],[10,27,12,30],[12,65,15,65],[5,0,5,79],[6,0,6,36],[6,37,6,65],[6,66,6,79],[7,0,8,36],[7,37,8,65],[7,66,9,79],[9,0,9,5],[9,6,9,12],[9,13,9,30],[10,69,10,70],[10,71,10,72],[10,73,10,77],[10,78,10,79],[16,0,18,5],[16,6,18,26],[16,27,18,30],[11,66,12,70],[13,6,15,26],[13,27,15,30],[11,71,12,79],[13,0,15,5],[9,31,12,36],[10,66,10,68],[21,0,21,5],[21,6,21,23],[21,24,21,42],[21,43,21,48],[21,49,21,52],[21,53,21,65],[21,66,21,79],[13,66,13,79],[14,66,15,79],[19,0,19,79],[20,0,20,79],[16,31,18,36],[13,31,15,36],[16,63,18,65],[16,66,18,69],[16,70,18,74],[16,75,18,79],[13,39,15,64],[16,39,18,62],[22,64,22,65],[22,66,22,79],[23,0,23,5],[23,6,23,23],[23,24,23,42],[23,43,23,48],[23,49,23,52],[23,53,23,63],[23,64,23,65],[23,66,23,79],[22,0,22,5],[22,6,22,23],[22,24,22,42],[22,43,22,48],[22,49,22,52],[22,53,22,63],[32,37,32,79],[24,64,24,65],[24,66,24,79],[25,0,25,5],[25,6,25,23],[25,24,25,42],[25,43,25,48],[25,49,25,52],[25,53,25,63],[25,64,25,65],[25,66,25,79],[24,0,24,5],[24,6,24,23],[24,24,24,42],[24,43,24,48],[24,49,24,52],[24,53,24,63],[28,0,28,42],[28,43,28,52],[28,53,28,63],[28,64,28,65],[28,66,28,79],[29,0,29,79],[26,64,26,65],[26,66,26,79],[27,0,27,5],[27,6,27,23],[27,24,27,42],[27,43,27,48],[27,49,27,52],[27,53,27,63],[27,64,27,65],[27,66,27,79],[26,0,26,5],[26,6,26,23],[26,24,26,42],[26,43,26,48],[26,49,26,52],[26,53,26,63],[30,61,30,79],[30,37,30,48],[30,49,30,60],[36,0,36,79],[9,37,9,38],[9,39,9,46],[9,47,9,65],[10,37,18,38],[10,39,11,65],[12,39,12,42],[12,43,12,51],[12,52,12,55],[12,56,12,64],[34,0,35,5],[34,6,35,18],[34,19,35,23],[34,24,35,36],[34,37,34,79],[35,37,35,79],[30,0,30,36],[31,0,32,36],[31,37,31,79],[33,0,33,36],[33,37,33,79]]}
[null,null,null,null,null,null,null,null,null,null,null,null,null,null,null,null,null,null,null,null,null,null,null,null,null,null,null,null,null,null,null," 見　　積　　書 "]
[]
[]
["古久根建設株式会社　御中"]
[null,null,null,null,null,null,null,null,null,null,null,null,null,null,null,null,null,null,null,null,null,null,null,null,null,null,null,null,null,null,null,null,null,null,null,null,null,null,null,null,null,null,null,null,null,null,null,null,null,null,null,null,null,null,null,null,null,null,null,null,null,null,null,null,null,null,null,"提出日"]
[]
["　工　事　名",null,null,null,null,null,null,null,null,null,null,null,null,null,null,null,null,null,null,null,null,null,null,null,null,null,null,null,null,null,null,null,null,null,null,null,null,"　取　引　先　コ　ー　ド",null,null,null,null,null,null,null,null,null,null,null,null,null,null,null,null,null,null,null,null,null,null,null,null,null,null,null,null,"建設業許可番号年月日"]
[]
[]
["消費税",null,null,null,null,null,0.1,null,null,null,null,null,null,null,null,null,null,null,null,null,null,null,null,null,null,null,null,null,null,null,null,"住　所",null,null,null,null,null,"〒"]
["見積金額\n（税込）",null,null,null,null,null,{"$f":"IF(G14=\"単価見積\",G14,G14+G17)","v":0},null,null,null,null,null,null,null,null,null,null,null,null,null,null,null,null,null,null,null,null,"円",null,null,null,null,null,null,null,null,null,null,null,null,null,null,null,null,null,null,null,null,null,null,null,null,null,null,null,null,null,null,null,null,null,null,null,null,null,null,"　　",null,null,null,null,"第",null,null,null,null,null,null,"号"]
[null,null,null,null,null,null,null,null,null,null,null,null,null,null,null,null,null,null,null,null,null,null,null,null,null,null,null,null,null,null,null,null,null,null,null,null,null,null,null,null,null,null,null,null,null,null,null,null,null,null,null,null,null,null,null,null,null,null,null,null,null,null,null,null,null,null," 許可年月日"]
[null,null,null,null,null,null,null,null,null,null,null,null,null,null,null,null,null,null,null,null,null,null,null,null,null,null,null,null,null,null,null,null,null,null,null,null,null,null,null,"ＴＥＬ・・",null,null,null,null,null,null,null,null,null,null,null,null,"ＦＡＸ・・"]
["見積金額\n（税抜）",null,null,null,null,null,{"$f":"(BB29)","v":0},null,null,null,null,null,null,null,null,null,null,null,null,null,null,null,null,null,null,null,null,"円",null,null,null,"会社名",null,null,null,null,null,null,null,null,null,null,null,null,null,null,null,null,null,null,null,null,null,null,null,null,null,null,null,null,null,null,null,null,null,null,"　見積有効期限"]
[]
[]
["消費税等",null,null,null,null,null,{"$f":"IF(G14=\"単価見積\",\"\",G14*G10)","v":0},null,null,null,null,null,null,null,null,null,null,null,null,null,null,null,null,null,null,null,null,"円",null,null,null,"代表者名",null,null,null,null,null,null,null,null,null,null,null,null,null,null,null,null,null,null,null,null,null,null,null,null,null,null,null,null,null,null,null,"印",null,null,"担当者"]
[]
[]
[]
["　　　　　　見　積　総　括　表"]
["費目コード",null,null,null,null,null,"工　事　費　目",null,null,null,null,null,null,null,null,null,null,null,null,null,null,null,null,null,"工　事　細　目",null,null,null,null,null,null,null,null,null,null,null,null,null,null,null,null,null,null,"数　量",null,null,null,null,null,"単位",null,null,null,"金　額",null,null,null,null,null,null,null,null,null,null,null,null,"備　考"]
[null,null,null,null,null,null,null,null,null,null,null,null,null,null,null,null,null,null,null,null,null,null,null,null,null,null,null,null,null,null,null,null,null,null,null,null,null,null,null,null,null,null,null,null,null,null,null,null,null,null,null,null,null,null,null,null,null,null,null,null,null,null,null,null,"円"]
[null,null,null,null,null,null,null,null,null,null,null,null,null,null,null,null,null,null,null,null,null,null,null,null,null,null,null,null,null,null,null,null,null,null,null,null,null,null,null,null,null,null,null,null,null,null,null,null,null,null,null,null,null,null,null,null,null,null,null,null,null,null,null,null,"円"]
[null,null,null,null,null,null,null,null,null,null,null,null,null,null,null,null,null,null,null,null,null,null,null,null,null,null,null,null,null,null,null,null,null,null,null,null,null,null,null,null,null,null,null,null,null,null,null,null,null,null,null,null,null,null,null,null,null,null,null,null,null,null,null,null,"円"]
[null,null,null,null,null,null,null,null,null,null,null,null,null,null,null,null,null,null,null,null,null,null,null,null,null,null,null,null,null,null,null,null,null,null,null,null,null,null,null,null,null,null,null,null,null,null,null,null,null,null,null,null,null,null,null,null,null,null,null,null,null,null,null,null,"円"]
[null,null,null,null,null,null,null,null,null,null,null,null,null,null,null,null,null,null,null,null,null,null,null,null,null,null,null,null,null,null,null,null,null,null,null,null,null,null,null,null,null,null,null,null,null,null,null,null,null,null,null,null,null,null,null,null,null,null,null,null,null,null,null,null,"円"]
[null,null,null,null,null,null,null,null,null,null,null,null,null,null,null,null,null,null,null,null,null,null,null,null,null,null,null,null,null,null,null,null,null,null,null,null,null,null,null,null,null,null,null,null,null,null,null,null,null,null,null,null,null,null,null,null,null,null,null,null,null,null,null,null,"円"]
["※工事費目は例「内装工事」等。工事細目は例「床・クロス工事」等、左記の内容については見積依頼書を参照して下さい。",null,null,null,null,null,null,null,null,null,null,null,null,null,null,null,null,null,null,null,null,null,null,null,null,null,null,null,null,null,null,null,null,null,null,null,null,null,null,null,null,null,null,"見積金額合計",null,null,null,null,null,null,null,null,null,{"$f":"IF(BB23=\"単価見積\",BB23,SUM(BB23:BL28))","v":0},null,null,null,null,null,null,null,null,null,null,"円"]
[]
["　工事（納入）場所",null,null,null,null,null,null,null,null,null,null,null,null,null,null,null,null,null,null,null,null,null,null,null,null,null,null,null,null,null,null,null,null,null,null,null,null,"見 積 条 件 等",null,null,null,null,null,null,null,null,null,null,null,"工 事 範 囲",null,null,null,null,null,null,null,null,null,null,null,"※選択してください"]
[null,null,null,null,null,null,null,null,null,null,null,null,null,null,null,null,null,null,null,null,null,null,null,null,null,null,null,null,null,null,null,null,null,null,null,null,null,"1.貴社の見積条件による。"]
[]
["　工種工期（納期）"]
["着工日",null,null,null,null,null,null,null,null,null,null,null,null,null,null,null,null,null,null,"完成日"]

{"sheet":"見積内訳書","index":4,"n_rows":23,"n_cols":9,"rows_kept":23,"cut":false,"hidden":false,"merged":[[0,0,1,8]]}
["　見　　積　　内　　訳　　書　"]
[]
["費目コード","部　位","名　称","仕　様\n（品質・形状・寸法等）","数　量","単位","単　価","金　額","備　考\n（メーカー名）"]
[null,null,null,null,null,null,null,{"$f":"IF(OR(C4=\"総計\",C4=\"合計\",C4=\"小計\",C4=\"計\"),SUM(H4:H4),IF(AND(E4=\"\",G4=\"\"),\"\",ROUNDDOWN(E4*G4,0)))","v":""}]
[null,null,null,null,null,null,null,{"$f":"IF(OR(C5=\"総計\",C5=\"合計\",C5=\"小計\",C5=\"計\"),SUM(H4:H4),IF(AND(E5=\"\",G5=\"\"),\"\",ROUNDDOWN(E5*G5,0)))","v":""}]
[null,null,null,null,null,null,null,{"$f":"IF(OR(C6=\"総計\",C6=\"合計\",C6=\"小計\",C6=\"計\"),SUM(H5:H5),IF(AND(E6=\"\",G6=\"\"),\"\",ROUNDDOWN(E6*G6,0)))","v":""}]
[null,null,null,null,null,null,null,{"$f":"IF(AND(E7=\"\",G7=\"\"),\"\",ROUNDDOWN(E7*G7,0))","v":""}]
[null,null,null,null,null,null,null,{"$f":"IF(AND(E8=\"\",G8=\"\"),\"\",ROUNDDOWN(E8*G8,0))","v":""}]
[null,null,null,null,null,null,null,{"$f":"IF(AND(E9=\"\",G9=\"\"),\"\",ROUNDDOWN(E9*G9,0))","v":""}]
[null,null,null,null,null,null,null,{"$f":"IF(AND(E10=\"\",G10=\"\"),\"\",ROUNDDOWN(E10*G10,0))","v":""}]
[null,null,null,null,null,null,null,""]
[null,null,null,null,null,null,null,""]
[null,null,null,null,null,null,null,""]
[null,null,null,null,null,null,null,""]
[null,null,null,null,null,null,null,""]
[null,null,null,null,null,null,null,""]
[null,null,null,null,null,null,null,""]
[null,null,null,null,null,null,null,""]
[null,null,null,null,null,null,null,""]
[null,null,null,null,null,null,null,""]
[null,null,null,null,null,null,null,""]
[null,null,null,null,null,null,null,""]
[null,null,null,null,null,null,null,{"$f":"IF(AND(E23=\"\",G23=\"\"),\"\",ROUNDDOWN(E23*G23,0))","v":""}]

{"sheet":"プルダウン用","index":5,"n_rows":18,"n_cols":5,"rows_kept":18,"cut":false,"hidden":true,"merged":[]}
["消費税率",null,"般・特",null,"単位"]
["8%",null,"　　"]
["10%",null,"般－",null,"m"]
[null,null,"特－",null,"㎡"]
[null,null,null,null,"㎥"]
[null,null,null,null,"ｔ"]
[null,null,null,null,"ｋｇ"]
[null,null,null,null,"式"]
[null,null,null,null,"ヵ所"]
[null,null,null,null,"個"]
[null,null,null,null,"枚"]
[null,null,null,null,"本"]
[null,null,null,null,"台"]
[null,null,null,null,"組"]
[null,null,null,null,"基"]
[null,null,null,null,"袋"]
[null,null,null,null,"畳"]
[null,null,null,null,"回"]

{"sheet":"内訳元","index":6,"n_rows":20,"n_cols":8,"rows_kept":20,"cut":false,"hidden":true,"merged":[]}
[null,null,null,null,null,null,null,{"$f":"IF(AND(E1=\"\",G1=\"\"),\"\",ROUNDDOWN(E1*G1,0))","v":""}]
[null,null,null,null,null,null,null,{"$f":"IF(AND(E2=\"\",G2=\"\"),\"\",ROUNDDOWN(E2*G2,0))","v":""}]
[null,null,null,null,null,null,null,{"$f":"IF(AND(E3=\"\",G3=\"\"),\"\",ROUNDDOWN(E3*G3,0))","v":""}]
[null,null,null,null,null,null,null,""]
[null,null,null,null,null,null,null,""]
[null,null,null,null,null,null,null,""]
[null,null,null,null,null,null,null,""]
[null,null,null,null,null,null,null,""]
[null,null,null,null,null,null,null,""]
[null,null,null,null,null,"　",null,""]
[null,null,null,null,null,null,null,""]
[null,null,null,null,null,null,null,""]
[null,null,null,null,null,null,null,""]
[null,null,null,null,null,null,null,""]
[null,null,null,null,null,null,null,""]
[null,null,null,null,null,null,null,""]
[null,null,null,null,null,null,null,""]
[null,null,null,null,null,null,null,""]
[null,null,null,null,null,null,null,{"$f":"IF(AND(E19=\"\",G19=\"\"),\"\",ROUNDDOWN(E19*G19,0))","v":""}]
[null,null,null,null,null,null,null,""]